Cogmind - Beta 17 @@@ ROGUE MODE // 2026.07.08 @ 23:38:19 Player: mephiles96 Result: Destroyed by as-09283 with Assembled Rifle Performance ------------- Evolutions (1) 500 Regions Visited (3) 600 Robots Destroyed (69) 345 Value Destroyed (1294) 1294 Prototype IDs (0) 0 Alien Tech Used (0) 0 Bonus (28) 28 TOTAL SCORE: 2767 Bonus ------- Follower Combat Kills 28 Cogmind --------- Core Integrity 0/400 Matter 139/300 Energy 123/125 System Corruption 0% Temperature Warm (145) Movement Treading (240) Ox2 Location -9/Mines Parts ------- > --- POWER (1) -------- Light Ion Engine > --- PROPULSION (2) --- Light Treads Light Treads > --- UTILITY (3) ------ Huge Storage Unit > --- WEAPON (3) ------- Spread Laser > --- INVENTORY (25) --- Light Treads Light Treads Light Treads Light Treads Heat Sink Medium Matter Pod (100) Trap Scanner Seismic Detector Seismic Detector Light Armor Plating Light Armor Plating Light Armor Plating Hardlight Generator Hardlight Generator Small Laser Beam Rifle Beam Rifle Autogun Autogun Peak State ------------ > --- POWER ------------ Light Nuclear Core > --- PROPULSION ------- Light Treads Wheel > --- UTILITY ---------- Improved Heat Sink High-capacity Storage Unit Hardlight Generator > --- WEAPON ----------- Small Laser Particle Gun Light Assault Rifle > --- INVENTORY -------- Ion Engine Light Treads Light Treads Light Treads Light Treads Medium Matter Pod Trap Scanner Seismic Detector Seismic Detector Light Armor Plating Light Armor Plating Light Armor Plating Light Armor Plating Light Armor Plating Hardlight Generator Small Laser Small Laser Beam Rifle Light Assault Rifle Light Cannon [Rating: 18] Favorites ----------- Power Ion Engine Engine Ion Engine Power Core Light Nuclear Core Propulsion Light Treads Treads Light Treads Wheel Armored Wheel Utility Improved Heat Sink Device Improved Heat Sink Storage Huge Storage Unit Protection Light Armor Plating Weapon Spread Laser Energy Gun Spread Laser Ballistic Gun Light Assault Rifle Ballistic Cannon Light Cannon Launcher Mini Grenade Launcher Build | -11 -10 -9 -9 ------- Run | Yrd Mat Mat Min Slots Evolved 2 | . . 2 . Power . | . . . . Propulsion . | . . . . Utility 1 | . . 1 . Weapon 1 | . . 1 . Parts Attached 43 | 8 13 17 5 Power 5 | 1 2 1 1 Engine 3 | 1 . 1 1 Core 2 | . 2 . . Reactor . | . . . . Propulsion 13 | 2 5 5 1 Treads 8 | 2 2 3 1 Leg . | . . . . Wheel 5 | . 3 2 . Hover . | . . . . Flight . | . . . . Utility 12 | 2 3 6 1 Device 5 | 1 2 2 . Storage 3 | 1 1 1 . Processor . | . . . . Hackware . | . . . . Protection 4 | . . 3 1 Artifact . | . . . . Weapon 13 | 3 3 5 2 Energy Gun 7 | 3 1 3 . Energy Cannon . | . . . . Ballistic Gun 4 | . 1 2 1 Ballistic Cannon 1 | . 1 . . Launcher 1 | . . . 1 Special Weapon . | . . . . Impact Weapon . | . . . . Slashing Weapon . | . . . . Piercing Weapon . | . . . . Special Melee Weapon . | . . . . Unidentified Prototypes . | . . . . Parts Lost 15 | . 4 2 9 Power 3 | . 1 1 1 Propulsion 4 | . 1 1 2 Utility 2 | . . . 2 Weapon 6 | . 2 . 4 Highest Loss Streak 9 | . 2 2 9 To Critical Strikes . | . . . . Average Backups 18 | 5 12 22 24 Power . | . 1 . . Propulsion 4 | 3 2 5 5 Utility 8 | . 6 11 10 Weapon 4 | . 3 5 6 Tool/Special . | . . . . Unused Backups 26 | . 6 8 12 Power 2 | . 2 . . Propulsion 5 | . 2 1 2 Utility 8 | . 2 1 5 Weapon 11 | . . 6 5 Tool/Special . | . . . . Average Slot Usage (%) 98 | . 97 99 96 Engine 5 | . 1 7 10 Core 5 | . 11 3 . Treads 12 | . 14 10 11 Wheel 11 | . 13 11 10 Device 11 | . 12 12 10 Storage 12 | . 14 11 11 Protection 5 | . . 9 10 Energy Gun 22 | . 22 22 21 Ballistic Gun 8 | . 4 11 10 Peak Build Rating 18 | 8 14 18 18 Average Rating 13 | 6 10 16 17 On Entrance 9 | . 8 12 18 Avg Prop Armor Cover (%) 9 | . 10 8 8 Naked Turns . | . . . . Heaviest Build 98 | 12 50 98 98 Greatest Support 40 | 40 40 20 40 Greatest Overweight (x) 9 | . 4 9 8 Average Overweight (x) 4 | . 1 6 7 Largest Inventory Capacity 25 | 8 20 25 25 Average Capacity 19 | 7 14 23 25 Most Carried 25 | 8 20 25 25 Average Carried 18 | 5 13 22 24 Final Capacity 25 | 8 20 25 25 Final Carried 25 | 8 20 25 19 Class Distribution -------------------- 33% | Mutant 24% | Tank 24% | Scavenger-Tank 10% | Scavenger-Mutant Dominant Class ---------------- Mutant | -10/Materials Scavenger-Tank | -9/Materials Tank | -9/Mines Resources | -11 -10 -9 -9 ----------- Run | Yrd Mat Mat Min Matter Collected 984 | 280 285 367 52 Remotely . | . . . . Salvage Created 2151 | 181 702 1102 166 Parts 153 | 15 37 87 14 Haulers Intercepted 5 | . 2 3 . Recyclers Shooed 5 | . 3 2 . Parts Field Recycled . | . . . . Retrieved Matter . | . . . . Parts Self-Destructed . | . . . . Prevented . | . . . . Parts Restored . | . . . . Kills | -11 -10 -9 -9 ------- Run | Yrd Mat Mat Min Combat Hostiles Destroyed 37 | . 9 22 6 Guns 35 | . 8 22 5 Cannons 1 | . 1 . . AOE 1 | . . . 1 Classes Destroyed 12 | 2 5 3 2 Worker 5 | . 2 1 2 Builder 3 | . . 2 1 Tunneler 6 | 5 . 1 . Hauler 5 | . 2 3 . Recycler 6 | 1 3 2 . Operator 1 | . . 1 . Watcher 8 | . 3 5 . Swarmer 12 | . 3 9 . Grunt 15 | . 6 7 2 Sentry 6 | . . 6 . Demolisher 2 | . . . 2 Assembled 2 | . . . 2 Best Kill Streak 7 | 2 4 7 3 Combat Bots Only 5 | . 2 5 3 Max Kills in Single Turn 4 | 1 1 4 1 Gunslinging 1 | . . 1 . Exploded 1 | . . . 1 Melee . | . . . . Uniques/NPCs Destroyed . | . . . . Combat | -11 -10 -9 -9 -------- Run | Yrd Mat Mat Min Hostile Shots Fired 190 | . 69 63 58 Missed 51 | . 18 22 11 Hits 139 | . 51 41 47 Melee 2 | . . . 2 Projectile 137 | . 51 41 45 AOE 22 | . . . 22 Critical Strikes 3 | . 1 1 1 Damage Taken 2286 | . 567 523 1196 Core 528 | . 124 119 285 Absorbed by Shields 16 | . . 16 . Regen/Repaired (Parts) 34 | . 34 . . Core Remaining (%) 75 | 100 50 . . Volleys Fired 174 | 16 69 60 29 Largest 3 | 2 2 3 3 Hottest 153 | 90 90 153 153 Shots Fired 401 | 32 127 174 68 Gun 397 | 32 125 174 66 Cannon 2 | . 2 . . Launcher 2 | . . . 2 Special . | . . . . Kinetic 100 | . 11 60 29 Thermal 299 | 32 116 114 37 Explosive 2 | . . . 2 Electromagnetic . | . . . . Robot Hit Streak 12 | 5 11 12 6 Robot Miss Streak 11 | 2 5 11 8 Penetration Max . | . . . . Secondary Targets 5 | . 2 1 2 Max Gunslinging Chain 1 | . 1 1 1 Shots Hit Robots 245 | 20 75 106 44 Core Hits 162 | 7 34 73 48 Critical Kills . | . . . . Critical Parts Destroyed . | . . . . Critical Strikes 7 | 1 6 . . Burn 7 | 1 6 . . Melee Attacks . | . . . . Impact . | . . . . Slashing . | . . . . Piercing . | . . . . Sneak Attacks . | . . . . Combat Hostiles . | . . . . Follow-up Attacks . | . . . . Damage Inflicted 3518 | 239 946 1723 610 Guns 3056 | 239 915 1371 531 Cannons 31 | . 31 . . Explosions 427 | . . 352 75 Melee . | . . . . Ramming 4 | . . . 4 Kinetic 483 | . 70 264 149 Thermal 2604 | 239 876 1107 382 Explosive 427 | . . 352 75 Electromagnetic . | . . . . Impact . | . . . . Slashing . | . . . . Piercing . | . . . . Highest Corruption . | . . . . Average Corruption . | . . . . Corruption Purged . | . . . . Corruption Blocked . | . . . . Overload Shots . | . . . . Overflow Damage 66 | . . 66 . Projectiles . | . . . . Explosions 66 | . . 66 . Melee . | . . . . Knockbacks 1 | . 1 . . Impact . | . . . . Kinetic 1 | . 1 . . Secondary . | . . . . Self-Inflicted Damage 74 | . . 72 2 Shots 1 | . . 1 . Rammed 2 | . 1 . 1 Targets Rammed 2 | . 1 . 1 Kicked . | . . . . Crushed . | . . . . Highest Temperature 465 | 210 312 270 465 Average Temperature 88 | 63 64 57 221 Received Heat Transfer 494 | . 258 156 80 Effects 12 | . 1 . 11 Shutdowns 3 | . . . 3 Energy Bleed 2 | . 1 . 1 Interference 1 | . . . 1 Matter Decay 1 | . . . 1 Damage (major) 5 | . . . 5 Siege Activations . | . . . . Martial Activations . | . . . . Shielding Activations . | . . . . Robots Disrupted . | . . . . Combat Hostiles . | . . . . Robots Corrupted . | . . . . Combat Hostiles . | . . . . Parts Fried . | . . . . Impact Corruptions . | . . . . Robots Melted . | . . . . Combat Hostiles . | . . . . Parts Melted 7 | 2 2 3 . Heat Transferred 6221 | 718 2785 2223 495 Parts Sabotaged . | . . . . Parts Stolen . | . . . . Parts Stripped . | . . . . Power Chain Reactions . | . . . . Alert | -11 -10 -9 -9 ------- Run | Yrd Mat Mat Min Maximum Alert Level 1 | . . 1 . Low Security (%) 99 | 100 100 98 100 Level 1 . | . . 1 . Level 2 . | . . . . Level 3 . | . . . . Level 4 . | . . . . Level 5 . | . . . . High Security . | . . . . Max Security . | . . . . Peak Influence 249 | 10 67 249 120 Initial 95 | . . . 95 Average 45 | 1 13 88 39 Influence Increases 1347 | 30 325 747 245 Destroy 0b10 Robot/C 780 | . 180 440 160 Destroy 0b10 Robot/NC 170 | 30 50 75 15 Destroy Leader 236 | . 60 146 30 Allied During Kill 10 | . . . 10 Successful Hack 14 | . 5 9 . Disable Machine 15 | . . 15 . Destroy Structure 47 | . . 32 15 Lose Combat Pursuer 75 | . 30 30 15 Influence Decreases 1347 | 30 325 502 490 Entered New Map 150 | . . . 150 Time Decay 1087 | 30 285 482 290 Lost Part 110 | . 40 20 50 Squads Dispatched 8 | . 2 4 2 Investigation 2 | . 1 1 . Extermination . | . . . . Reinforcement 6 | . 1 3 2 Assault . | . . . . Garrison . | . . . . Intercept . | . . . . Searches Triggered . | . . . . Construction Impeded 2 | . . . 2 Haulers Reinforced . | . . . . Active Scanning Responses . | . . . . Cargo Convoy Interrupts . | . . . . Stealth | -11 -10 -9 -9 --------- Run | Yrd Mat Mat Min Distress Signals 4 | . 1 3 . Communications Jammed . | . . . . Distress Signals . | . . . . Times Spotted 70 | . 20 36 14 Peak Tracking Total 5 | . 4 4 5 Tactical Retreats 5 | . 2 2 1 Traps | -11 -10 -9 -9 ------- Run | Yrd Mat Mat Min Traps Triggered 4 | . 3 1 . Indirectly . | . . . . Trap Hack Attempts . | . . . . Triggered . | . . . . Disarmed . | . . . . Reprogrammed . | . . . . Reused . | . . . . Traps Extracted . | . . . . Installed . | . . . . Triggered . | . . . . Machines | -11 -10 -9 -9 ---------- Run | Yrd Mat Mat Min Machines Disabled 1 | . . 1 . Max in Single Turn 1 | . . 1 . Machines Repaired . | . . . . Machines Dismantled . | . . . . Machines Sabotaged . | . . . . Overloaded Fab Kills . | . . . . Hacking | -11 -10 -9 -9 --------- Run | Yrd Mat Mat Min Machines Accessed 6 | . 3 2 1 Terminals 2 | . . 1 1 Fabricators . | . . . . Repair Stations 1 | . 1 . . Recycling Units 2 | . 2 . . Scanalyzers 1 | . . 1 . Garrison Access . | . . . . Total Hacks 10 | . 4 3 3 Successful 8 | . 4 3 1 Failed 2 | . . . 2 Catastrophic . | . . . . Database Lockouts . | . . . . Manual 4 | . . 1 3 Terminals 4 | . . 1 3 Fabricators . | . . . . Repair Stations 2 | . 2 . . Recycling Units 2 | . 2 . . Scanalyzers 2 | . . 2 . Garrison Access . | . . . . Terminal Hacks 2 | . . 1 1 Part Schematic 1 | . . 1 . Branch Access Points 1 | . . . 1 Fabricator Hacks . | . . . . Repair Station Hacks 2 | . 2 . . Scan Component 1 | . 1 . . Repair 1 | . 1 . . Recycling Unit Hacks 2 | . 2 . . Retrieve Components 2 | . 2 . . Scanalyzer 2 | . . 2 . Retrieve Study 2 | . . 2 . Garrison Access Hacks . | . . . . Unauthorized Hacks . | . . . . Terminals . | . . . . Fabricators . | . . . . Repair Stations . | . . . . Recycling Units . | . . . . Scanalyzers . | . . . . Garrison Access . | . . . . Data Cores Recovered . | . . . . Used . | . . . . Hacking Detections 3 | . 1 1 1 Full Trace Events . | . . . . Feedback Events . | . . . . Feedback Blocked . | . . . . Robot Schematics Acquired . | . . . . Robots Built . | . . . . Authchips . | . . . . Time . | . . . . Total Robot Build Rating . | . . . . Part Schematics Acquired 1 | . . 1 . Parts Built . | . . . . Authchips . | . . . . Time . | . . . . Total Part Build Rating . | . . . . Part Studies Acquired 2 | . . 2 . Parts Repaired 1 | . 1 . . Time 38 | . 38 . . Parts Recycled . | . . . . Recycled Matter . | . . . . Retrieved Matter . | . . . . Retrieved Components 13 | . 13 . . Parts Scanalyzed . | . . . . Part Schematics Acquired . | . . . . Parts Damaged . | . . . . Bothacking | -11 -10 -9 -9 ------------ Run | Yrd Mat Mat Min Used RIF Installer . | . . . . Robots Hacked . | . . . . Non-combat . | . . . . Combat . | . . . . Robot Hacks Applied . | . . . . Relay Couplers Released . | . . . . Fabnet Peak Effective % . | . . . . Robots Rewired . | . . . . Allies Hacked . | . . . . Hacks Repelled . | . . . . Allies | -11 -10 -9 -9 -------- Run | Yrd Mat Mat Min Total Allies 2 | . . . 2 Largest Group 2 | . . . 2 Highest-Rated Group 50 | . . . 50 Highest-Rated Ally 31 | . . . 31 Total Orders . | . . . . Ally Attacks 13 | . . . 13 Total Damage 124 | . . . 124 Kills 4 | . . . 4 Allies Corrupted . | . . . . Allies Melted . | . . . . Intel | -11 -10 -9 -9 ------- Run | Yrd Mat Mat Min Active Infowar (turns) 1266 | 92 958 216 . Traps 89 | . . 89 . Seismic 1265 | 92 958 215 . Robot Analysis Total . | . . . . Derelict Logs Recovered 3 | . . . 3 Drone Launches . | . . . . Drone Recoveries . | . . . . Exploration | -11 -10 -9 -9 ------------- Run | Yrd Mat Mat Min Turns Passed 3892 | 209 1472 1451 760 Spaces Moved 1849 | 91 797 636 325 Core 3 | 3 . . . Treads 361 | 88 267 1 5 Legs . | . . . . Wheels 1485 | . 530 635 320 Hover . | . . . . Flight . | . . . . Fastest Speed 50 | 50 80 140 200 Average Speed 167 | 156 142 183 200 Slowest Speed 320 | 160 160 320 240 Overloaded Moves . | . . . . Propulsion Burnouts . | . . . . Robots Hopped . | . . . . Potential Cave-ins . | . . . . Cave-ins Triggered . | . . . . Exploration Rate (%) 51 | 4 94 55 51 Regions Visited 3 Branch Regions 1 Pre-discovered Areas . | . . . . Known Exits Taken . | . . . . Unknown Exits Taken 3 | 1 1 1 . Scrap Searched 1 | . . . 1 Spaces Dug . | . . . . Terrain Destroyed 54 | . . 37 17 Melee . | . . . . Projectile . | . . . . AOE 54 | . . 37 17 Terrain Rammed . | . . . . Walls Destroyed . | . . . . Machines Disabled . | . . . . Actions | -11 -10 -9 -9 --------- Run | Yrd Mat Mat Min Total 2327 | 122 1013 811 381 Wait 151 | . 88 43 20 Move 1846 | 90 796 635 325 Hop . | . . . . Pick Up 55 | 8 26 21 . Fast Attach 12 | 7 5 . . Attach 13 | . 3 4 6 Detach . | . . . . Swap 35 | 1 10 24 . Drop 39 | . 15 24 . Fire 174 | 16 69 60 29 Melee . | . . . . Ram 2 | . 1 . 1 Kick . | . . . . Crush . | . . . . Escape Stasis . | . . . . Rewire . | . . . . Trap . | . . . . Miscellaneous . | . . . . Route ------- -11/Scrapyard -10/Materials (discovered 4 exits: *Mat x3 / [*Min]) -9/Materials (discovered 2 exits: *Mat / *Min) -9/Mines (discovered 3 exits: *Mat x2 / [*Zio]) History --------- Turn | Location | Event 43 | -11/Scrapyard | Discovered new exit (range 15) 210 | -11/Scrapyard | Entered Materials 317 | -10/Materials | Build established: Mutant 682 | -10/Materials | Discovered new exit (range 13) 811 | -10/Materials | Discovered new exit (range 8) 1463 | -10/Materials | Repaired Imp. Heat Sink 1508 | -10/Materials | Discovered new exit (range 8) 1582 | -10/Materials | Build established: Scavenger-Mutant 1623 | -10/Materials | Discovered new exit (range 14) 1682 | -10/Materials | Entered another Materials area 1682 | -9/Materials | Evolved 2 slots: Utility x1, Weapon x1 2404 | -9/Materials | Build established: Scavenger-Tank 2491 | -9/Materials | Discovered new exit (range 15) 3077 | -9/Materials | Discovered new exit (range 16) 3133 | -9/Materials | Entered Mines 3134 | -9/Mines | A Derelict revealed a hidden shortcut to a safe place 3149 | -9/Mines | Identified exit to Materials 3190 | -9/Mines | Build established: Tank 3291 | -9/Mines | Learned Materials emergency access door positions 3446 | -9/Mines | Discovered exit to Materials (range 5) 3473 | -9/Mines | Learned Materials terminal intel 3808 | -9/Mines | Assembled infested the area 3813 | -9/Mines | Assisted by a Guerilla fighting off Assembled 3841 | -9/Mines | Core integrity fell below 50% 3858 | -9/Mines | Core integrity fell below 20% 3893 | -9/Mines | Destroyed by as-09283 with Assembled Rifle Last Messages --------------- 03866_ as-10373 destroyed. 03868_ The unstable cave ceiling collapses. 03870_ Overheating: System interference. 03870_ Mni. Grenade Launcher temporarily disabled. 03870_ The unstable cave ceiling collapses. 03872_ Power failure, Lgt. Ion Engine shutdown. 03875_ The unstable cave ceiling collapses. 03878_ Mni. Grenade Launcher destroyed. 03880_ The unstable cave ceiling collapses. 03883_ Power failure, Lgt. Ion Engine shutdown. 03883_ The unstable cave ceiling collapses. 03884_ Autogun destroyed. 03885_ U-05 Engineer lays Concrete. 03886_ Overheating: Matter decay (-46). 03886_ The unstable cave ceiling collapses. 03886_ U-05 Engineer lays Concrete. 03887_ U-05 Engineer builds a Wall. 03888_ The unstable cave ceiling collapses. 03892_ U-05 Engineer lays Concrete. Map ----- +----------------------------------------------------+ | | | | | | | | | | | ?????????????????????????????????????????????????? | | ??????????????????????????????????????????????#### | | ????????????????####?????????????????########## # | | ??????????????### ##????????????????# | | ????????#######! ##???????????????# ####### | | ????????#%[=!%%=! ####????????????# #????## | | ????????#%####|= < #??????####### #????# | | ????????#!#??## ## #??????# #????# | | ?########=#???## ###!######?# #######????## | | ?# #????######?#/%]%* #?# #???????????### | | ## ######+#######?????##### #?# #????#####????### | | #???## ##????????# #?# #???## ##?????? | | ###???# #????????# %### ##??# #?????? | | #?????# #???????##% #### ##????? | | #?????# ##???????# ##???? | | #?????## ##???????## ## ##??? | | ##??????########???????## r### ##?? | | #####??????????????????# #### ##? | | #????????????????### % ## ### #? | | #???????????????## #u]%# ??## # | | "" #???????????????# @u# ##??## ## # | | "" #??????????????## ## ##?## #### # | | "" #??????????????# # # #### ##???# ## | | "" #??????????????## # ## ## ##?????# ##? | | #??????????????# a # # ###########?? | | #??????????????# !# # #???? | | #??????????????## # # #???? | | #####???????????????# # ## ### #???? | | ????????????????????# # ## #?# ####? | | ????????????????????# ## # #?# ## | | ???????????????????# #### ### #?# # | | ???????????????????# #?# #?# #?# # | | ??????????????????# #?# ##?# #?## # | | ?????????????????# a #??# #?? #??## ## | | ?????????????? #???## ##?? ????### #? | | ?????????????# ?????## #???? ??????# #? | | ????????????# ##??????# #???? ??????# #? | | ???????????# # ##????????# ????? ??????# #? | | ??????????# #????????????# ?????? #??????# #? | | ??????????# ????????????????????? ???????# #? | | ?????????? ??????????????????????#?????### ## | | ?????????? ?????????????????????????????# | | ??????????? ??????????????????????????????# | | ??????????? ???????????????????????????????# ## | | ????????????????????????????????????????????# ?## | +----------------------------------------------------+ Best States ------------- Heat Dissipation 42 Energy Generation 14 Energy Capacity 250 Matter Stores 300 Matter Capacity 300 Sight Range 16 Terrain Scan Density 10 Armor Coverage 150 Evasion (%) 44 Recoil Reduction 2 Item Schematics ----------------- Huge Storage Unit | -9/Materials | Hacked Robot Schematics ------------------ None Fabricated ------------ Nothing Repaired ---------- Imp. Heat Sink | 15% | -10/Materials Studied --------- Lgt. Treads | -9/Materials | Hacked Arm. Wheel | -9/Materials | Hacked Alien Tech Used ----------------- None Achievements -------------- None Challenges ------------ None Game ------ Seed NanofilamentsFrostDevice Manual? 0 Play Time 00:25:52 Cumulative 89.6 hours Start 2026.07.08 @ 23:13:05 End 2026.07.08 @ 23:38:19 Sessions 1 Manual Loads 0 Difficulty Rogue Special Mode None Game No. 96 Rogue 96 Adventurer 0 Explorer 0 Win Type - Total 1 Types 1/0/0/0/0/0/0/0/0/0 Lore% 45 Gallery% 40 Achievement% 39 Wizard Run 0 Options --------- Layout 2 ASCII 0 Keyboard 1 Movement Numpad Keybinds 1 Fullscreen 1 Font 32/SmallcapsGlow Map View 50x44 Zoom Use 0% Tactical HUD 1 Map Filters NONE Filters NONE Steam 1 RUN: 9620517c-186b-4604-9c8f-30c332717102